bitfinex/quotes_ETHUSD_20240709
["timestamp","ask_amount","ask_price","bid_price","bid_amount"]
[1720502492043,0.0544301,3071.1,3071.0,3.25626]
[1720502492224,0.0544301,3071.1,3071.0,6.51252]
[1720502492411,0.0544301,3071.1,3070.7,0.0651331]
[1720502492412,0.34055812,3071.2,3071.1,6.51232]
[1720502492609,7.36,3071.4,3070.8,0.06511974]
[1720502492610,7.36,3071.4,3071.3,3.25595]
[1720502492817,7.36,3071.4,3071.3,7.0619]
[1720502493431,7.36,3072.5,3071.3,0.55]
[1720502493738,0.326,3072.8,3071.2,0.55]
[1720502493952,0.34056986,3072.4,3071.4,3.25581]
[1720502494240,0.34056986,3072.4,3071.6,3.25555]
[1720502495459,0.34056986,3072.4,3071.4,3.25581]
[1720502495763,0.34056986,3072.4,3071.2,0.55]
[1720502495764,0.34056986,3072.4,3071.5,3.25573]
[1720502496355,2.4633,3072.3,3071.0,3.25624]
[1720502496519,2.4633,3072.3,3071.4,3.25575]
[1720502496720,2.4633,3072.3,3071.7,3.25544]
[1720502497228,2.4633,3072.3,3071.9,3.25524]
[1720502497444,0.34056986,3072.4,3072.0,3.25517]
[1720502498258,0.34056986,3072.4,3072.2,3.25498]
[1720502498458,0.34056986,3072.4,3072.3,3.25489]
[1720502498630,2.4366,3073.4,3072.6,3.25446]
[1720502498824,0.34054431,3073.0,3072.9,3.25424]
[1720502500883,0.34054431,3073.0,3072.3,0.55]
[1720502500884,0.34054431,3073.0,3072.7,3.25439]
[1720502501050,0.34054431,3073.0,3072.8,3.25435]
[1720502501970,0.34054431,3073.0,3072.3,3.80487]
[1720502502181,0.34054431,3073.0,3072.6,3.25456]
[1720502502676,0.34054431,3073.0,3072.4,3.25477]
[1720502502875,0.34054431,3073.0,3072.3,0.55]
[1720502503273,0.34054431,3073.0,3072.3,3.80487]
[1720502503675,0.34054431,3073.0,3071.8,3.25539]
[1720502504071,0.34054431,3073.0,3072.3,3.25487]
[1720502504273,0.04864494,3072.9,3072.3,3.25487]
[1720502504796,0.04864494,3072.9,3072.3,3.25488]
[1720502504997,0.04864494,3072.9,3072.5,3.25467]
[1720502505713,0.04864494,3072.9,3072.1,3.25506]
[1720502505998,0.04864494,3072.9,3071.7,3.25549]
[1720502506175,2.4104,3072.8,3071.7,3.25549]
[1720502506373,0.24590449,3072.7,3071.7,3.25549]
[1720502506558,0.29443778,3072.7,3071.7,3.25549]
[1720502507169,0.29443778,3072.7,3071.8,3.25538]
[1720502507372,0.04853329,3072.7,3071.9,3.25523]
[1720502507677,0.04853329,3072.7,3072.3,3.25486]
[1720502507875,0.04853329,3072.7,3071.9,3.2553]
[1720502508196,0.04850973,3072.6,3072.0,0.55]
[1720502508396,2.4104,3072.8,3072.0,0.55]
[1720502508558,2.4104,3072.8,3072.2,3.25498]
[1720502508759,2.4104,3072.8,3071.5,3.25568]
[1720502508760,2.68549443,3072.8,3071.7,3.25546]
[1720502508991,0.04853329,3072.7,3071.7,3.25546]
[1720502509185,0.04853329,3072.7,3071.5,3.25572]
[1720502509771,0.04853329,3072.7,3071.6,3.25562]
[1720502510101,0.27340277,3072.6,3071.6,3.25562]
[1720502510277,0.27340277,3072.6,3071.9,3.2553]
[1720502510601,0.0483834,3072.5,3071.9,3.2553]
[1720502511167,0.0483834,3072.5,3071.6,3.25562]
[1720502511505,0.0483834,3072.5,3070.9,5.55722]
[1720502511506,0.0483834,3072.5,3071.4,3.25581]
[1720502511704,0.0483834,3072.5,3071.5,3.80573]
[1720502512595,0.0483834,3072.5,3071.6,3.2556]
[1720502512768,0.0483834,3072.5,3071.7,3.25551]
[1720502514218,0.34056608,3072.4,3071.7,3.25551]
[1720502514375,0.388982,3072.4,3071.5,3.80571]
[1720502514574,0.388982,3072.4,3071.6,3.25556]
[1720502515108,0.388982,3072.4,3071.7,3.25549]
[1720502515802,0.388982,3072.4,3072.3,3.25489]
[1720502516014,0.04841592,3072.4,3072.3,7.05978]
[1720502516203,0.34053538,3072.7,3072.3,7.05978]
[1720502516391,0.04826755,3072.4,3072.3,3.25489]
[1720502516591,0.34053538,3072.7,3072.1,3.25509]
[1720502516792,0.34053538,3072.7,3071.2,7.6694]
[1720502516793,2.52146984,3072.4,3071.2,2.3994]
[1720502517003,0.34053538,3072.7,3072.0,3.25515]
[1720502517175,0.34053538,3072.7,3071.8,3.25541]
[1720502517176,0.04826345,3072.3,3071.8,3.25534]
[1720502517369,0.28137354,3072.6,3071.8,3.25534]
[1720502517570,0.04830365,3072.2,3071.8,3.25534]
[1720502517799,7.36,3072.6,3071.8,3.25534]
[1720502518104,0.04837395,3072.1,3072.0,3.2552]
[1720502518326,7.36,3072.6,3072.0,3.2552]
[1720502518519,0.04837395,3072.1,3072.0,3.2552]
[1720502518804,0.04837395,3072.1,3071.8,3.25534]
[1720502519103,7.36,3072.6,3071.9,3.25531]
[1720502519296,0.04817556,3072.0,3071.9,3.25531]
[1720502519492,7.36,3072.6,3072.0,3.25519]
[1720502519707,7.36,3072.6,3072.4,3.25468]
[1720502519877,7.36,3072.6,3072.5,6.50934]
[1720502520078,0.34053538,3072.7,3072.5,6.50934]
[1720502520079,0.34053538,3072.7,3072.6,3.25457]
[1720502520583,0.34053538,3072.7,3072.6,3.31965538]
[1720502520771,0.34053538,3072.7,3072.6,6.57422538]
[1720502520976,7.36,3073.1,3073.0,3.25414]
[1720502521513,7.36,3073.1,3073.0,7.05828]
[1720502522298,7.40675122,3073.1,3073.0,7.05828]
[1720502522907,7.40675122,3073.1,3073.0,10.31242]
[1720502523836,0.04675122,3073.1,3073.0,13.56656]
[1720502524042,1.52278966,3075.8,3073.0,13.56656]
[1720502524043,2.4658,3075.0,3074.2,3.25286]
[1720502524208,2.4658,3076.3,3074.5,3.25252]
[1720502524408,2.4658,3076.3,3074.9,3.25213]
[1720502524409,2.59799206,3076.2,3074.9,3.25213]
[1720502524641,3.18512251,3076.2,3074.9,3.25213]
[1720502524796,3.18512251,3076.2,3075.1,3.25192]
[1720502526022,3.0,3076.1,3074.7,3.25232]
[1720502526207,3.0,3076.1,3075.0,3.25202]
[1720502526208,3.56509225,3076.1,3075.0,3.25202]
[1720502526401,0.56509225,3076.1,3075.2,3.2518]
[1720502526599,2.93854251,3076.2,3075.3,3.31673109]
[1720502526931,2.59799206,3076.2,3075.4,0.06502521]
[1720502527239,2.59799206,3076.2,3075.5,3.25146]
[1720502527406,2.4658,3076.3,3075.7,3.25128]
[1720502527615,2.4625,3077.5,3076.0,3.25094]
[1720502527813,0.34047012,3077.0,3076.0,3.25094]
[1720502527998,2.86847026,3077.4,3076.4,3.2505]
[1720502528198,0.53309703,3077.3,3076.4,3.2505]
[1720502528710,0.53309703,3077.3,3076.0,3.25097]
[1720502529138,0.53309703,3077.3,3075.8,3.25116]
[1720502529139,2.86847026,3077.4,3076.7,3.2502]
[1720502529335,2.59799206,3077.4,3077.0,3.2499]
[1720502531121,2.59799206,3077.4,3076.3,3.25065]
[1720502531295,2.59799206,3077.4,3075.8,2.3223]
[1720502531296,2.59799206,3077.4,3076.6,3.25033]
[1720502531501,2.85779127,3077.4,3076.6,3.25033]
[1720502531702,0.03755712,3077.3,3076.6,3.25033]
[1720502532113,0.03755712,3077.3,3076.7,0.06500133]
[1720502532314,0.03755712,3077.3,3076.9,3.24994]
[1720502532514,0.32709196,3077.3,3076.7,3.25022]
[1720502532937,0.32709196,3077.3,3075.9,3.25103]
[1720502533108,0.32709196,3077.3,3076.3,3.25064]
[1720502533318,0.2925084,3077.2,3076.5,3.25036]
[1720502533641,0.2925084,3077.2,3076.3,3.25064]
[1720502533642,0.2925084,3077.2,3076.6,3.25031]
[1720502534001,0.2925084,3077.2,3076.4,3.25049]
[1720502534251,0.2925084,3077.2,3075.9,3.25107]
[1720502534252,2.4654,3077.1,3076.0,3.25088]
[1720502534397,0.27579084,3077.0,3075.8,3.25116]
[1720502534602,0.31329742,3077.0,3076.1,3.25086]
[1720502534937,0.03750658,3077.0,3076.2,3.25072]
[1720502535137,0.03750658,3077.0,3076.9,3.25002]
[1720502535138,1e-08,3077.0,3076.9,3.25002]
[1720502535337,0.03617753,3077.0,3076.9,3.25002]
[1720502535499,2.423,3077.7,3076.3,3.25058]
[1720502535701,0.03620102,3077.0,3076.4,3.25053]
[1720502536043,0.2423,3077.6,3076.5,3.25043]
[1720502536225,0.03643473,3076.9,3076.5,3.25043]
[1720502536410,0.2423,3077.6,3076.3,3.25065]
[1720502536742,0.03641811,3076.8,3075.6,3.25134]
[1720502537049,0.26653,3077.5,3076.1,3.25082]
[1720502537202,0.03651496,3076.7,3076.2,3.25076]
[1720502537404,0.26653,3077.5,3076.3,3.25064]
[1720502537637,0.03645936,3076.6,3076.5,3.25043]
[1720502537950,0.26653,3077.5,3076.5,3.25043]
[1720502538300,0.03675126,3077.4,3076.5,3.25043]
[1720502539316,0.03675126,3077.4,3076.8,3.25005]
[1720502539516,0.03675126,3077.4,3076.9,3.24999]
[1720502539717,0.03675126,3077.4,3076.7,3.25019]
[1720502540642,0.03675126,3077.4,3076.2,3.25069]
[1720502540935,0.03675126,3077.4,3076.3,3.80065]
[1720502541412,0.03675126,3077.4,3076.5,3.25043]
[1720502541816,0.03675126,3077.4,3076.3,3.80064]
[1720502542028,0.03675126,3077.4,3076.4,3.2505]
[1720502542217,0.03675126,3077.4,3076.5,3.25043]
[1720502542938,0.03675126,3077.4,3076.3,3.80064]
[1720502543453,0.03675126,3077.4,3075.7,3.25119]
[1720502543454,2.4047,3077.3,3075.7,3.25119]
[1720502543742,5.00269206,3077.1,3075.6,3.25132]
[1720502544236,3.03652801,3077.0,3075.6,3.25132]
[1720502544439,3.03652801,3077.0,3074.7,4.694]
[1720502544644,8.16392201,3076.9,3074.8,0.06502033]
[1720502544797,8.20026599,3076.9,3074.9,0.55]
[1720502545003,7.39634398,3076.9,3075.2,2.267]
[1720502545205,0.03634398,3076.9,3075.4,2.3516]
[1720502545423,0.03634398,3076.9,3075.5,0.06500335]
[1720502545637,0.03634398,3076.9,3075.5,3.61500335]
[1720502545797,0.03634398,3076.9,3075.5,0.61500335]
[1720502546003,0.03634398,3076.9,3075.5,3.61500335]
[1720502546820,0.03634398,3076.9,3075.5,3.55]
[1720502547149,0.28044838,3076.9,3075.5,3.55]
[1720502547453,0.28044838,3076.9,3075.5,0.55]
[1720502547948,0.03634398,3076.9,3075.6,0.06500826]
[1720502548098,0.03634398,3076.9,3075.7,0.55]
[1720502549312,0.03634398,3076.9,3075.8,0.06500248]
[1720502549517,0.03634398,3076.9,3075.9,0.55]
[1720502549719,1e-08,3076.9,3076.0,0.06500245]
[1720502549949,0.03500359,3076.9,3076.2,2.3039]
[1720502550240,0.03507933,3076.8,3076.3,2.88199466]
[1720502550416,7.36,3078.1,3076.3,2.88199466]
[1720502550741,0.03393033,3076.7,3076.4,3.0]
[1720502550939,0.97015,3078.0,3076.5,0.61498771]
[1720502550940,1.00449577,3078.0,3076.5,0.61498771]
[1720502551243,0.03316614,3077.9,3076.5,0.61498771]
[1720502552503,7.36,3078.1,3076.5,0.61498771]
[1720502552818,0.03360971,3078.0,3076.9,2.4802]
[1720502553075,0.03360971,3078.0,3077.0,0.61496591]
[1720502553250,9.7857,3078.8,3077.3,2.267]
[1720502553406,7.36,3078.8,3077.4,0.61496254]
[1720502553606,0.03374406,3078.7,3077.4,3.61496254]
[1720502553841,0.03374406,3078.7,3077.5,2.4802]
[1720502554147,0.03374406,3078.7,3077.6,0.61495915]
[1720502554326,0.03374406,3078.7,3077.6,7.04895915]
[1720502554526,0.03374406,3078.7,3077.8,2.267]
[1720502554735,9.7857,3079.8,3077.9,0.61495261]
[1720502554919,10.76427,3079.8,3077.9,0.61495261]
[1720502555116,0.03144513,3079.7,3077.9,3.61495261]
[1720502555520,0.03144513,3079.7,3077.9,3.55]
[1720502555722,0.35744513,3079.7,3077.9,0.55]
[1720502555937,0.35744513,3079.7,3077.6,3.0]
[1720502555938,2.3269,3079.5,3077.7,0.55]
[1720502556139,2.3269,3079.5,3077.7,3.55]
[1720502556339,0.37208594,3079.4,3077.7,3.55]
[1720502556553,2.2725,3079.2,3077.3,2.267]
[1720502556850,2.2725,3079.2,3076.9,2.47057096]
[1720502556851,0.03136732,3079.1,3076.9,2.47057096]
[1720502557029,2.2725,3079.0,3076.9,2.47057096]
[1720502557229,0.03138336,3078.9,3076.9,2.47057096]
[1720502557783,0.03138336,3078.9,3076.4,0.06497535]
[1720502557784,0.326,3078.3,3076.4,0.06497535]
[1720502558044,7.39120367,3078.2,3076.4,0.06497535]
[1720502558613,7.71720367,3078.2,3076.0,0.06498823]
[1720502558814,7.39120367,3078.2,3076.0,0.06498823]
[1720502559124,0.73912037,3078.1,3076.0,0.06498823]
[1720502559554,0.03119568,3078.0,3076.0,0.06498823]
[1720502559750,0.03119568,3078.0,3076.3,5.701]
[1720502559953,0.03119568,3078.0,3076.4,0.61497539]
[1720502560148,2.4894,3078.4,3076.4,3.61497539]
[1720502560358,0.03115157,3077.9,3076.4,3.61497539]
[1720502560580,2.4894,3078.4,3076.5,2.3303]
[1720502560782,0.03110625,3077.8,3076.8,2.267]
[1720502560944,2.4894,3078.4,3076.9,0.61497011]
[1720502561141,0.03106128,3077.7,3076.9,3.61497011]
[1720502561341,3.47434,3078.4,3076.9,0.61497011]
[1720502561647,0.03119523,3078.3,3076.9,3.61497011]
[1720502563049,0.03119523,3078.3,3076.9,3.55]
[1720502563882,0.03119523,3078.3,3077.0,0.06497702]
[1720502564091,1.01925475,3078.3,3077.1,0.55]
[1720502564381,1.01925475,3078.3,3076.3,2.9374541]
[1720502564382,1.01925475,3078.3,3076.3,0.6704541]
[1720502564583,1.01925475,3078.3,3075.8,3.96349051]
[1720502564584,2.4337,3078.1,3075.8,2.9374541]
[1720502564798,2.4337,3077.9,3075.8,2.33199911]
[1720502564948,2.4337,3077.9,3075.9,1.13132612]
[1720502565284,0.03126552,3077.8,3076.1,0.6704541]
[1720502565492,0.03126552,3077.8,3076.2,0.06499383]
[1720502565785,0.03126552,3077.8,3076.3,1.19629734]
[1720502566103,0.24649655,3077.7,3076.3,0.06499557]
[1720502566582,2.4337,3077.9,3076.4,1.13127605]
[1720502566788,2.4337,3077.9,3076.6,0.6704541]
[1720502566958,0.03119327,3077.8,3076.7,0.61497956]
[1720502567161,0.03119327,3077.8,3076.8,1.19625563]
[1720502567479,0.03119327,3077.8,3076.9,0.55]
[1720502567684,0.03119327,3077.8,3077.0,1.19602106]
[1720502567850,2.4616,3078.4,3077.1,1.68104154]
[1720502568065,0.03116052,3077.7,3077.2,0.0649768]
[1720502568346,0.98216,3078.3,3077.3,1.68103498]
[1720502568552,0.98216,3078.3,3077.3,0.61497957]
[1720502568745,0.03129049,3078.2,3077.3,0.61497957]
[1720502569283,0.03129049,3078.2,3077.4,2.82755037]
[1720502569579,0.03129049,3078.2,3077.3,1.29183232]
[1720502569580,2.4616,3078.4,3077.5,1.74597687]
[1720502569771,3.44376,3078.4,3077.5,0.6149741]
[1720502569969,0.03132322,3078.3,3077.6,2.89242468]
[1720502570188,1e-08,3078.3,3077.7,3.37745058]
[1720502570346,0.03019612,3078.3,3077.8,2.89242039]
[1720502570579,0.03019612,3078.3,3077.9,1.68098023]
[1720502570767,0.03019612,3078.3,3077.9,0.55]
[1720502571655,0.03019612,3078.3,3077.5,0.67824095]
[1720502571656,0.27937573,3078.3,3077.5,0.67824095]
[1720502571866,0.27937573,3078.3,3077.3,0.67824095]
[1720502572077,0.27937573,3078.3,3077.4,1.1310396]
[1720502572282,0.27409757,3078.2,3077.2,0.67824095]
[1720502572488,0.30436872,3078.2,3077.3,2.82770983]
[1720502572784,0.30436872,3078.2,3077.4,1.13108393]
[1720502572993,0.03027115,3078.2,3077.5,1.13105047]
[1720502573288,2.4616,3078.4,3077.2,0.67824095]
[1720502573474,0.03028242,3078.1,3077.3,3.37765375]
[1720502573678,2.4616,3078.4,3077.4,2.82765375]
[1720502573995,0.03025895,3078.0,3077.5,1.1310615]
[1720502574150,2.4616,3078.4,3077.3,0.55]
[1720502574350,0.24616,3078.3,3077.4,1.13107668]
[1720502574551,0.27663257,3078.3,3077.3,0.55]
[1720502574794,0.27382326,3078.2,3077.4,1.13107974]
[1720502574954,0.27382326,3078.2,3077.0,1.01848954]
[1720502574955,0.27382326,3078.2,3077.1,0.67899303]
[1720502575155,0.27382326,3078.2,3077.2,2.82777813]
[1720502575156,0.03037222,3078.1,3077.2,2.82777813]
[1720502575380,0.03037222,3078.1,3077.1,1.69673621]
[1720502575692,0.27382326,3078.2,3077.2,1.13114464]
[1720502575990,0.03030382,3078.0,3077.3,1.19611725]
[1720502576190,0.03035404,3078.1,3077.2,0.74397032]
[1720502576364,7.36,3078.2,3077.4,0.67899303]
[1720502576689,7.36,3078.2,3077.3,3.37723843]
[1720502576690,0.02934539,3078.1,3077.5,4.05623146]
[1720502576898,0.02934539,3078.1,3077.6,2.82723843]
[1720502577058,0.02934539,3078.1,3077.7,1.68089537]
[1720502577259,0.02934539,3078.1,3077.7,0.55]
[1720502577459,0.02934539,3078.1,3077.5,0.55]
[1720502577685,0.02934539,3078.1,3077.5,2.24640407]
[1720502577867,0.02934539,3078.1,3077.5,0.55]
[1720502578113,0.76827993,3078.1,3077.5,0.55]
[1720502578286,0.76827993,3078.1,3077.2,1.69644879]
[1720502578287,0.76827993,3078.1,3077.3,0.55]
[1720502578594,0.02934539,3078.1,3077.4,1.13094825]
[1720502578898,0.02934539,3078.1,3077.3,2.24663312]
[1720502578899,0.02934539,3078.1,3077.5,0.55]
[1720502579055,0.02934539,3078.1,3077.3,0.55]
[1720502579454,0.02934539,3078.1,3077.2,0.55]
[1720502579992,0.02934539,3078.1,3077.3,1.19596583]
[1720502580193,0.02934539,3078.1,3077.4,1.68098368]
[1720502580358,0.02934539,3078.1,3077.4,0.55]
[1720502580796,0.02934539,3078.1,3077.5,0.06497193]
[1720502581004,0.02934539,3078.1,3077.6,1.68085962]
[1720502581203,9.8079,3079.0,3077.7,0.06497139]
[1720502581355,0.98079,3078.9,3077.8,0.55]
[1720502581560,1.01041063,3078.9,3077.9,0.0649648]
[1720502581875,1.01041063,3078.9,3077.8,0.55]
[1720502581876,1.01041063,3078.9,3078.0,0.61496485]
[1720502582098,1.01041063,3078.9,3078.1,0.55]
[1720502582263,0.54063463,3078.8,3078.1,0.55]
[1720502582463,0.02956114,3078.7,3078.1,0.55]
[1720502582793,0.02956114,3078.7,3078.2,0.0649648]
[1720502582993,0.02956114,3078.7,3078.3,0.55]
[1720502583357,9.8079,3079.0,3078.3,0.55]
[1720502583581,0.02948742,3078.6,3078.3,0.55]
[1720502583782,9.8079,3079.0,3078.3,0.55]
[1720502583982,0.02946292,3078.5,3078.4,0.06495639]
[1720502584175,7.36,3079.6,3078.5,0.55]
[1720502584370,7.36,3079.6,3078.6,0.06495279]
[1720502584574,7.36,3079.6,3078.7,0.55]
[1720502585297,7.36,3079.6,3078.8,0.06494643]
[1720502585628,7.36,3079.6,3078.9,0.55]
[1720502585806,7.36,3079.6,3079.0,0.0649428]
[1720502586102,7.36,3079.6,3079.1,0.55]
[1720502586761,7.36,3079.6,3078.4,3.0649428]
[1720502586762,8.096,3079.6,3078.4,3.0]
[1720502587066,8.096,3079.6,3078.0,0.0649428]
[1720502587067,8.096,3079.6,3078.5,0.55]
[1720502587263,0.8096,3079.5,3078.5,0.55]
[1720502587459,2.3469,3079.4,3077.9,3.06495188]
[1720502587687,2.3469,3079.4,3078.0,3.0]
[1720502587891,2.3469,3079.4,3078.0,0.06495638]
[1720502587892,0.31565,3079.3,3078.0,0.06495638]
[1720502588111,0.31565,3079.3,3077.8,0.06495402]
[1720502588292,7.67565,3079.3,3077.8,0.06495402]
[1720502588607,1.002255,3079.2,3077.8,0.06495402]
[1720502589463,1.002255,3079.2,3077.9,0.55]
[1720502589887,1.002255,3079.2,3078.0,0.0649598]
[1720502590197,7.67565,3079.3,3078.1,0.55]
[1720502590701,7.67565,3079.3,3078.2,0.06495363]
[1720502591006,7.67565,3079.3,3078.3,0.55]
[1720502591175,7.67565,3079.3,3078.4,0.06495364]
[1720502591374,7.67565,3079.3,3078.5,0.55]
[1720502591375,1.002255,3079.2,3078.5,0.55]
[1720502591576,2.492,3079.1,3077.3,2.44028384]
[1720502591777,2.492,3079.1,3077.4,1.87400143]
[1720502591967,2.492,3079.1,3077.5,1.80903706]
[1720502592175,0.3494255,3079.0,3077.6,1.13088844]
[1720502592374,0.3494255,3079.0,3077.3,3.28422293]
[1720502592375,0.3494255,3079.0,3077.3,0.67814862]
[1720502592574,0.3494255,3079.0,3077.1,0.67814862]
[1720502592575,2.4991,3078.9,3077.1,0.67814862]
[1720502592877,2.4991,3078.9,3077.0,1.01722293]
[1720502592878,9.8591,3078.9,3076.9,0.06497833]
[1720502593103,9.8591,3078.9,3076.9,1.87531793]
[1720502593269,9.8591,3078.9,3077.0,1.13102072]
[1720502593476,2.2598,3078.7,3077.0,1.13102072]
[1720502593674,2.2598,3078.7,3077.1,1.19599863]
[1720502593900,2.2598,3078.7,3077.1,0.06497791]
[1720502594083,2.2598,3078.7,3076.9,3.67931888]
[1720502594294,2.2598,3078.7,3077.0,1.13103834]
[1720502594497,0.354571,3078.6,3077.0,1.13103834]
[1720502594685,0.354571,3078.6,3077.1,1.74601781]
[1720502595005,0.354571,3078.6,3077.2,1.13103834]
[1720502595226,0.354571,3078.6,3077.3,0.55]
[1720502595367,0.354571,3078.6,3077.4,0.0649779]
[1720502595720,2.2598,3078.7,3077.5,0.55]
[1720502596071,2.2598,3078.7,3077.3,0.55]
[1720502596573,2.2598,3078.7,3077.4,1.13095265]
[1720502596801,2.2598,3078.7,3077.5,0.55]
[1720502596975,0.354571,3078.6,3077.5,0.55]
[1720502597192,0.38437895,3078.6,3077.3,0.55]
[1720502597397,2.3362,3078.5,3077.2,0.68011052]
[1720502597707,0.02976101,3078.4,3076.9,5.37654126]
[1720502597921,7.38976101,3078.4,3077.0,1.19612652]
[1720502598084,0.2365961,3078.3,3077.0,0.06498668]
[1720502598291,0.0295411,3078.2,3077.0,0.06498668]
[1720502598607,0.0295411,3078.2,3077.1,1.13108349]
[1720502598817,0.0295411,3078.2,3077.2,0.06498032]
[1720502599518,0.79215482,3078.2,3077.3,0.55]
[1720502599687,0.79215482,3078.2,3077.3,0.61498028]
[1720502600024,0.0295411,3078.2,3077.4,0.55]
[1720502600476,0.0295411,3078.2,3077.2,0.55]
[1720502602088,0.0295411,3078.2,3077.0,0.55]
[1720502603617,0.79215482,3078.2,3077.0,0.55]
[1720502604284,0.79215482,3078.2,3077.0,0.61498007]
[1720502604487,2.3959,3078.1,3077.0,0.55]
[1720502604686,2.3959,3078.1,3076.4,2.37713756]
[1720502604687,0.02945867,3078.0,3076.4,2.37713756]
[1720502604991,0.34826415,3078.0,3076.5,1.13124886]
[1720502605203,0.27441642,3077.9,3076.3,2.60960265]
[1720502605405,0.27441642,3077.9,3076.4,1.13126418]
[1720502605588,0.02935672,3077.8,3076.4,1.13126418]
[1720502605798,0.02935672,3077.8,3076.5,1.13126742]
[1720502606027,0.02935672,3077.8,3076.6,0.55]
[1720502606191,0.02935672,3077.8,3076.7,1.19625377]
[1720502606391,0.02935672,3077.8,3076.8,0.61498486]
[1720502606595,2.3959,3078.1,3076.5,0.55]
[1720502606800,0.76261372,3078.2,3076.5,0.55]
[1720502606801,2.3711,3077.6,3076.5,0.55]
[1720502606997,2.3711,3077.6,3076.4,3.55]
[1720502607219,0.02913044,3077.5,3076.4,3.55]
[1720502607419,2.3711,3077.6,3076.5,1.19625759]
[1720502607626,2.3711,3077.6,3076.6,1.68120686]
[1720502607821,2.3711,3077.6,3076.7,1.1961745]
[1720502608138,2.3711,3077.6,3076.4,1.69690084]
[1720502608139,0.02912128,3077.5,3076.8,0.61498629]
[1720502608296,0.02912128,3077.5,3076.8,0.55]
[1720502608640,0.02912128,3077.5,3076.5,0.06498696]
[1720502608641,0.02912128,3077.5,3076.6,0.55]
[1720502609205,0.02912128,3077.5,3076.3,0.55]
[1720502609533,2.3711,3077.6,3076.3,0.55]
[1720502614342,2.60821,3077.6,3076.3,0.55]
[1720502614645,0.02909172,3077.5,3075.9,0.06500499]
[1720502615297,0.02909172,3077.5,3076.0,1.13143948]
[1720502615528,0.02909172,3077.5,3076.1,0.06499355]
[1720502615749,0.02909172,3077.5,3076.2,1.13130494]
[1720502615925,0.02909172,3077.5,3076.3,0.61499293]
[1720502617226,0.02909172,3077.5,3076.4,1.1312143]
[1720502617543,2.4851,3078.3,3076.5,3.44219786]
[1720502617752,0.02913628,3078.2,3076.6,4.1312143]
[1720502618053,0.02913628,3078.2,3076.9,1.696]
[1720502618214,0.02913628,3078.2,3077.0,0.61496981]
[1720502618715,2.4851,3078.3,3077.0,0.61496981]
[1720502618946,0.02928761,3078.2,3077.0,0.61496981]
[1720502619218,2.4851,3078.3,3077.0,0.61496981]
[1720502619452,3.12358682,3078.3,3077.0,0.61496981]
[1720502619640,0.02936781,3078.2,3077.0,0.55]
[1720502619828,0.02936781,3078.2,3076.8,0.61498083]
[1720502620040,1.08066327,3078.2,3076.8,0.61498082]
[1720502620728,1.08066327,3078.2,3076.8,0.55]
[1720502621069,1.08066327,3078.2,3076.6,0.55]
[1720502621232,1.08066327,3078.2,3076.6,1.74611622]
[1720502621557,1.08066327,3078.2,3076.7,1.13111717]
[1720502621721,1.08066327,3078.2,3076.8,0.55]
[1720502622134,1.08066327,3078.2,3076.6,3.06498436]
[1720502622135,1.08066327,3078.2,3076.9,0.06498402]
[1720502622332,1.08066327,3078.2,3077.0,0.55]
[1720502622333,0.02936781,3078.2,3077.0,0.55]
[1720502623231,0.02936781,3078.2,3076.8,0.55]
[1720502623815,3.44352827,3078.1,3076.8,0.55]
[1720502624014,3.44352827,3078.1,3076.8,0.0649844]
[1720502624015,2.3178,3078.1,3076.8,0.0649844]
[1720502624222,0.02932964,3078.0,3076.9,0.55]
[1720502624455,0.02932964,3078.0,3077.0,0.06497966]
[1720502624656,0.02932964,3078.0,3077.1,0.55]
[1720502624857,0.02932964,3078.0,3077.1,0.06498144]
[1720502625017,0.02932964,3078.0,3077.2,0.55]
[1720502625223,0.02932964,3078.0,3077.3,0.06497868]
[1720502626565,0.02932964,3078.0,3076.6,3.0]
[1720502626865,0.23471296,3077.9,3076.7,0.55]
[1720502627226,0.02930366,3077.8,3076.6,0.55]
[1720502627629,2.3911,3077.7,3076.3,0.84523883]
[1720502627927,2.3911,3077.7,3076.3,0.23061793]
[1720502627928,0.02927237,3077.6,3076.3,0.23061793]
[1720502628349,0.02927237,3077.6,3076.1,5.44073309]
[1720502628537,2.2884,3077.5,3076.2,1.13129439]
[1720502628737,2.64954962,3077.5,3076.2,4.13129439]
[1720502628987,2.64954962,3077.5,3076.2,3.0]
[1720502629168,2.64954962,3077.5,3076.1,1.696]
[1720502629475,2.64954962,3077.5,3076.2,1.13132369]
[1720502629779,2.64954962,3077.5,3076.0,0.9143817]
[1720502629949,2.31763122,3077.5,3076.1,1.68129341]
[1720502630146,2.31763122,3077.5,3076.2,1.19628374]
[1720502630353,2.31763122,3077.5,3076.3,1.74628116]
[1720502630564,2.2884,3077.5,3076.4,1.13128771]
[1720502630801,0.02904928,3077.4,3076.5,0.61498775]
[1720502632295,0.02904928,3077.4,3076.6,1.13121958]
[1720502632494,0.02904928,3077.4,3076.7,0.61498619]
[1720502632694,2.2884,3077.5,3076.7,0.61498619]
[1720502633261,2.2884,3077.5,3076.8,1.1311561]
[1720502633491,0.02906761,3077.4,3076.9,0.55]
[1720502634007,0.02906761,3077.4,3076.8,0.55]
[1720502634859,2.2884,3077.5,3076.9,1.13113856]
[1720502635064,0.02899256,3077.4,3077.0,0.55]
[1720502635267,0.02899256,3077.4,3076.6,2.37773837]
[1720502635484,2.2884,3077.5,3076.5,4.69683411]
[1720502635685,2.2884,3077.5,3076.6,4.13127453]
[1720502635902,0.02904284,3077.4,3076.5,1.69683411]
[1720502636112,2.2884,3077.5,3076.6,1.13125355]
[1720502636314,0.02901935,3077.3,3076.7,1.13125355]
[1720502636611,2.2884,3077.5,3076.7,1.13125355]
[1720502636815,2.2884,3077.5,3076.5,1.69683411]
[1720502636974,0.02905541,3077.4,3076.6,0.55]
[1720502637175,0.02905541,3077.4,3076.6,2.24683411]
[1720502637397,2.2884,3077.5,3076.6,0.55]
[1720502637705,0.02905541,3077.4,3076.7,2.82820274]
[1720502637911,2.2884,3077.5,3076.6,1.23182984]
[1720502638071,0.02903192,3077.3,3076.7,2.8281522]
[1720502638267,2.2884,3077.5,3076.8,3.44313795]
[1720502638574,0.02905541,3077.4,3076.9,2.82813634]